Workbook

Sheet Zener DK
B1: Zener Diode som Spændingsregulatorer - Design en spændingsregulator
B3: Når du vælger zenerdioder, skal du sørge for, at dens maksimale effekt ikke overskrides | J3: Beregning af spænding og strøm
B4: Imax | C4: Maximum current for Zener diode | F4: Anbefalet min strøm for Zener diode | J4: Den samlede strøm trukket fra strømforsyningen er den samme som gennem seriemodstanden
D5: =ROUND(G10/G12,0) -> 455 | E5: mA | F5: IZT [test strøm] | G5: 80 | H5: mA
K6: Rs = Vs/Is= | L6: =ROUND((G14/D5)*1000,2) -> 2.64 | M6: Ω | N6: Rs min. beregnet uden RL [Load] ved anbefalet max. strøm
B8: Zener type: | C8: BZX85C3V3
B9: Data: | C9: 1500mW 3,1 to 3,5V | J9: RsT [test strøm] Se datablad | K9: Vs/IZT = | L9: =ROUND((G14/G5)*1000,2) -> 15 | M9: Ω | N9: RsT max. beregnet uden RL [Load] ved anbefalet min. strøm
B10: Ptot Zener max. Effekt. Tråd min 8 mm fra krop. | G10: 1500 | H10: mWatt
B11: RL belastning modstand | G11: 330 | H11: Ω
B12: Vz Zener Diode standard spænding | G12: 3.3 | H12: Volt | J12: Strømmen gennem belastningsmodstanden er
B13: Vin Indgangsspænding | G13: 4.5 | H13: Volt
B14: Vs spænding over seriemodstanden | G14: =G13-G12 -> 1.2 | H14: Volt | L14: =ROUND((G15/G11)*1000,2) -> 10 | M14: mA
B15: VL spænding over belastningen modstanden | G15: =+G12 -> 3.3 | H15: Volt
B16: Is strømmen gennem seriemodstanden | G16: =ROUND((G14/L6)*1000,2) -> 454.55 | H16: mA
B17: Iz strømmen gennem Zenerdioden | F17: =IF(G17=D5,"Imax for Zener",IF(G17<D5,"Zener diode OK")) -> Zener diode OK | G17: =+L18 -> 444.55 | H17: mA | J17: Zenerdiodens strøm er
B18: IL strømmen gennem belastningsmodstanden | G18: =+L14 -> 10 | H18: mA | L18: =ROUND(G16-G18,2) -> 444.55 | M18: mA
J21: Hvis spændingskilden er større end Vz
C23: =CONCATENATE(L6,H11) -> 2,64 Ω | D23: =CONCATENATE(G16,H16) -> 454,55 mA | F23: =CONCATENATE(G12,H12) -> 3,3 Volt | K23: and | M23: =G13-G15 -> 1.2 | N23: and | O23: =+G12 -> 3.3 | P23: Volt
C24: Vs | D24: =CONCATENATE(G14,H14) -> 1,2 Volt
J25: Hvis spændingskilden er mindre end Vz
N26: Volt | P26: Volt
K27: and | N27: =(L6*G13)/(L6+G11) -> 0.03571428571 | O27: and | P27: =(G11*G13)/(L6+G11) -> 4.464285714
N29: Sum | O29: =+N27+P27 -> 4.5 | P29: Volt
J30: De gule celler kan ændres.
C31: =+CONCATENATE(G13,H13) -> 4,5 Volt | D31: =+C8 -> BZX85C3V3 | F31: =CONCATENATE(G17,H17) -> 444,55 mA | G31: =CONCATENATE(G11,H11) -> 330 Ω | H31: =CONCATENATE(G18,H18) -> 10 mA | J31: Der er 5 eksempler på Zener dioder 1500mW, 1000 mW, 500mW og 250mW
D32: =+C9 -> 1500mW 3,1 to 3,5V | J32: Fjern RL betyder at indsætte en uendelig stor modstand
J33: Hvis RL ikke er kendt, men strømmen som belastningen bruger er kendt,
J34: lav så en "hvad nu hvis-analyse" m.h.t. RL.
J36: Udarbejdet af Jørgen Walter ©
J38: www.walter-lystfisker.dk
J40: COPYRIGHT © 2014
B41: walter | O41: Reg. No. 1271

Sheet Zener UK
B1: Zener Diode as Voltage Regulators - Design a Voltage Regulator
B3: When selecting the zener diode, be sure that its maximum power rating is not exceeded | J3: Calculating voltage and current
B4: Imax | C4: Maximum current for Zener diode | F4: Recommended min. current of Zener diode | J4: The total current drawn from the source is the same as that through the series resistor
D5: =ROUND(G10/G12,0) -> 455 | E5: mA | F5: IZT [test current] | G5: 80 | H5: mA
K6: Rs = Vs/Is= | L6: =ROUND((G14/D5)*1000,2) -> 2.64 | M6: Ω | N6: Rs min. calculated without RL [Load] at the recommended max. current
B8: Zener type: | C8: BZX85C3V3
B9: Data: | C9: 1500mW 3,1 to 3,5V | J9: RsT [test current] See Data Sheet | K9: Vs/IZT = | L9: =ROUND((G14/G5)*1000,2) -> 15 | M9: Ω | N9: RsT max. calculated without RL [Load] at the recommended min. current
B10: Ptot Zener max. Power. Leads min 8 mm from case | G10: 1500 | H10: mWatt
B11: RL Load Resistor | G11: 330 | H11: Ω
B12: Vz Zener Diode standard voltage | G12: 3.3 | H12: Volt | J12: The current through the load resistor is
B13: Vin Input voltage | G13: 4.5 | H13: Volt
B14: Vs Voltage across series resistance | G14: =G13-G12 -> 1.2 | H14: Volt | L14: =ROUND((G15/G11)*1000,2) -> 10 | M14: mA
B15: VL Voltage across the load resistance | G15: =+G12 -> 3.3 | H15: Volt
B16: Is Current passing through the series resistance | G16: =ROUND((G14/L6)*1000,2) -> 454.55 | H16: mA
B17: Iz Current passing through the Zener diode | F17: =IF(G17=D5,"Imax for Zener",IF(G17<D5,"Zener diode OK")) -> Zener diode OK | G17: =+L18 -> 444.55 | H17: mA | J17: The zener diode current is
B18: IL Current passing through the load resistance | G18: =+L14 -> 10 | H18: mA | L18: =ROUND(G16-G18,2) -> 444.55 | M18: mA
J21: If the voltage source is greater than Vz
C23: =CONCATENATE(L6,H11) -> 2,64 Ω | D23: =CONCATENATE(G16,H16) -> 454,55 mA | F23: =CONCATENATE(G12,H12) -> 3,3 Volt | K23: and | M23: =G13-G15 -> 1.2 | N23: and | O23: =+G12 -> 3.3 | P23: Volt
C24: Vs | D24: =CONCATENATE(G14,H14) -> 1,2 Volt
J25: If the voltage source is less than Vz
N26: Volt | P26: Volt
K27: and | N27: =(L6*G13)/(L6+G11) -> 0.03571428571 | O27: and | P27: =(G11*G13)/(L6+G11) -> 4.464285714
N29: Sum | O29: =+N27+P27 -> 4.5 | P29: Volt
J30: The yellow cells can be changed.
C31: =+CONCATENATE(G13,H13) -> 4,5 Volt | D31: =+C8 -> BZX85C3V3 | F31: =CONCATENATE(G17,H17) -> 444,55 mA | G31: =CONCATENATE(G11,H11) -> 330 Ω | H31: =CONCATENATE(G18,H18) -> 10 mA | J31: There are 5 examples of Zener Diodes 1500mW, 1000mW, 500mW and 250mW
D32: =+C9 -> 1500mW 3,1 to 3,5V | J32: Remove RL means inserting an infinitely large resistance
J33: If RL is not known but the current which the load use,
J34: simply make a "what if analysis" in terms of RL.
J36: Developed by Jørgen Walter ©
J38: www.walter-lystfisker.dk
J40: COPYRIGHT © 2014
B41: walter | O41: Reg. No. 1271

Sheet TL431 DK
B1: TL431 og TLV431 som spændings regulatorer - Design en spændings regulator
B3: IC | C3: Vref [nominel] | D3: Vin | E3: R1 | F3: R2 | G3: R3 | H3: Icathode | I3: VR1 | J3: VR2 | K3: IR1 | L3: IR2 | M3: Iref
B4: Type | C4: volt | D4: volt | E4: Ω | F4: Ω | G4: Ω | H4: mA | I4: volt | J4: volt | K4: uA | L4: uA | M4: uA
B5: TL431 | C5: 2.495 | D5: 4.5 | E5: 3900 | F5: 12000 | G5: 470 | H5: =ROUND(((D5-G14)/G5)*1000,2) -> 2.53 | I5: =G14-C5 -> 0.815 | J5: =+C5 -> 2.495 | K5: =(I5/E5)*10^6 -> 208.974359 | L5: =(J5/F5)*10^6 -> 207.9166667 | M5: 1.06
D6: =IF(D5<E6,"Vin for lille",IF(D5<E7,"Vin er OK",IF(D5>E7,"Vin for stor"))) -> Vin er OK | E6: 2.5 | H6: =IF(H5<I6,"Icathode for lille",IF(H5<I7,"Icathode er OK",IF(H5>I7,"Icathode for stor"))) -> Icathode er OK | I6: 1 | M6: =IF(M5<N6,"Iref for lille",IF(M5<=N7,"Iref er OK",IF(M5>N7,"Iref for stor"))) -> Iref er OK | N6: 1
D7: 2,5 to 36 volt | E7: 36 | H7: 1 to 100 mA | I7: 100 | M7: =ROUND(K5-L5,2) -> 1.06 | N7: 4
E8: =ROUND(E5,2) -> 3900 | F8: =ROUND(F5,2) -> 12000 | G8: =ROUND(G5,2) -> 470 | M8: 1 to 4 uA
D9: Adjustable Precision Shunt Regulators | J9: Low Voltage Adjustable Precision Shunt Regulator
B12: Vi ønsker at finde VO ved at indsætte de rigtige værdier i de gule celler
B14: Vo = Vref*(1+R1/R2)+(Iref*R1) = | E14: =C5*(1+E5/F5) -> 3.305875 | F14: =(M5*E5)/1000000 -> 0.004134 | G14: =ROUND(E14+F14,2) -> 3.31 | H14: Volt
B16: (Iref*R1) udgør | E16: =F14/E14 -> 0.001250501002 | G16: af Vref*(1+R1/R2) | I16: derfor kan man se bort fra denne addision, ved at indsætte 0 i Iref,
I17: ellers indsættes manuelt celle værdien fra M7 i celle M5, som vist ovenfor
I19: Fremgangsmåde for bestemmelse af Vout:
I20: 1. Vælg din "Shunt Regulator" type
I21: 2. Indsæt Vref for typen
I22: 3. Indsæt Vin og kontroller, at den er inden for det tilladelige for typen
I23: 4. Vælg en værdi for R3, så Icathode værdien ikke overskrides
D24: =CONCATENATE(G8,G4) -> 470 Ω | G24: =CONCATENATE("Vout ",G14,H14) -> Vout 3,31 Volt | I24: 5. Vælg R1 til 10 kΩ og R2 til 10 MΩ [husk at indsætte i Ω]
I25: 6. Aflæs Vo og hvis den ikke passer med kravet, lav en "Hvad hvis analyse" m.h.t. R2
I26: 7. Aflæs derefter celle M7, indsæt værdien i celle M5
I27: 8. Hvis Vo ændre sig væsentligt, gentages punkt 6
I28: 9. Når R1, R2 og R3 er beregnet, skal de nærmeste værdier i E-192 0,5 % rækken findes
I29: 10. Indsæt standard værdier og aflæs Vo og M7
I30: 11. Har M7 ændret sig, indsættes den på ny i M5
I31: 12. Hvis Vo ændre sig væsentligt, gentages punkt 6
B32: =CONCATENATE(D5,D4) -> 4,5 volt
G33: =CONCATENATE(H3,H5,H4) -> Icathode 2,53 mA | I33: Herunder en test med TL431, Vin 10V, Vout 3,3V
D34: =CONCATENATE(E8,E4) -> 3900 Ω
I36: Aflæs værdierne på diagrammet til venstre
C37: =CONCATENATE(C5,C4) -> 2,495 volt | E37: =CONCATENATE(M3,M7,M4) -> Iref 1,06 uA
G38: =+B5 -> TL431
D43: =CONCATENATE(F8,F4) -> 12000 Ω
I44: Udarbejdet af Jørgen Walter ©
I46: www.walter-lystfisker.dk
I48: COPYRIGHT © 2014
B50: walter | M50: Reg. No. 1271

Sheet TL431 UK
B1: TL431 and TLV431 as voltage regulators - Design a voltage regulator
B3: IC | C3: Vref [nominel] | D3: Vin | E3: R1 | F3: R2 | G3: R3 | H3: Icathode | I3: VR1 | J3: VR2 | K3: IR1 | L3: IR2 | M3: Iref
B4: Type | C4: volt | D4: volt | E4: Ω | F4: Ω | G4: Ω | H4: mA | I4: volt | J4: volt | K4: uA | L4: uA | M4: uA
B5: TL431 | C5: 2.495 | D5: 4.5 | E5: 3900 | F5: 12000 | G5: 470 | H5: =ROUND(((D5-G14)/G5)*1000,2) -> 2.53 | I5: =G14-C5 -> 0.815 | J5: =+C5 -> 2.495 | K5: =(I5/E5)*10^6 -> 208.974359 | L5: =(J5/F5)*10^6 -> 207.9166667 | M5: 1.06
D6: =IF(D5<E6,"Vin to small",IF(D5<E7,"Vin is OK",IF(D5>E7,"Vin to big"))) -> Vin is OK | E6: 2.5 | H6: =IF(H5<I6,"Icathode to small",IF(H5<I7,"Icathode is OK",IF(H5>I7,"Icathode to big"))) -> Icathode is OK | I6: 1 | M6: =IF(M5<N6,"Iref to small",IF(M5<=N7,"Iref is OK",IF(M5>N7,"Iref to big"))) -> Iref is OK | N6: 1
D7: 2,5 to 36 volt | E7: 36 | H7: 1 to 100 mA | I7: 100 | M7: =ROUND(K5-L5,2) -> 1.06 | N7: 4
E8: =ROUND(E5,2) -> 3900 | F8: =ROUND(F5,2) -> 12000 | G8: =ROUND(G5,2) -> 470 | M8: 1 to 4 uA
D9: Adjustable Precision Shunt Regulators | J9: Low Voltage Adjustable Precision Shunt Regulator
B12: We want to find Vo by inserting the right values ​​in the yellow cells
B14: Vo = Vref*(1+R1/R2)+(Iref*R1) = | E14: =C5*(1+E5/F5) -> 3.305875 | F14: =(M5*E5)/1000000 -> 0.004134 | G14: =ROUND(E14+F14,2) -> 3.31 | H14: Volt
B16: (Iref*R1) represent | E16: =F14/E14 -> 0.001250501002 | G16: of Vref*(1+R1/R2) | I16: therefore, you can ignore this addision, by inserting 0 in Iref,
I17: otherwise manually enter the cell value from M7 in cell M5, as shown above
I19: Procedure for the determination of Vout:
I20: 1. Choose your "Shunt Regulator" type
I21: 2. Insert Vref for the type
I22: 3. Insert Vin and verify that it is within the allowable for the type
I23: 4. Select a value for R3, so Icathode value is not exceeded
D24: =CONCATENATE(G8,G4) -> 470 Ω | G24: =CONCATENATE("Vout ",G14,H14) -> Vout 3,31 Volt | I24: 5. Select R1 to 10 kΩ and R 2 to 10 MΩ [remember insert in Ω]
I25: 6. Read Vo and if it does not fit with the requirement, create a "what if analysis" for R2
I26: 7. Then read the cell M7, insert the value in cell M5
I27: 8. If Vo change significantly, repeat steps 6
I28: 9. When R1, R2 and R3 is calculated, insert the nearest values ​​on E-192 0.5 %
I29: 10. Insert standard values ​​and read the Vo and M7
I30: 11. If M7 has changed, inserted it again in M5
I31: 12. If Vo change significantly, repeat steps 6
B32: =CONCATENATE(D5,D4) -> 4,5 volt
G33: =CONCATENATE(H3,H5,H4) -> Icathode 2,53 mA | I33: Below a test with TL431, Vin 10V, Vout 3.3V
D34: =CONCATENATE(E8,E4) -> 3900 Ω
I36: Read the values ​​on the diagram to the left
C37: =CONCATENATE(C5,C4) -> 2,495 volt | E37: =CONCATENATE(M3,M7,M4) -> Iref 1,06 uA
G38: =+B5 -> TL431
D43: =CONCATENATE(F8,F4) -> 12000 Ω
I44: Udarbejdet af Jørgen Walter ©
I46: www.walter-lystfisker.dk
I48: COPYRIGHT © 2014
B50: walter | M50: Reg. No. 1271
